[Event "Early-Titled-Tuesday-Blitz-February-06-2024"]
[Site "Chess.com"]
[Date "2024.02.06"]
[Round "6"]
[White "N4700000"]
[Black "Yeritsyaan"]
[Result "0-1"]
[WhiteElo "2422"]
[BlackElo "2623"]
[TimeControl "180+1"]
[EndTime "9:06:13 PST"]
[Termination "Yeritsyaan won by resignation"]

1. e4 {[%clk 0:03:00.9]} 1... e6 {[%clk 0:02:59.6]} 2. Nf3 {[%clk 0:02:59.1]}
2... d5 {[%clk 0:02:57.8]} 3. e5 {[%clk 0:02:59.3]} 3... c5 {[%clk 0:02:56]} 4.
b4 {[%clk 0:02:59.4]} 4... Nc6 {[%clk 0:02:51]} 5. bxc5 {[%clk 0:02:57.7]} 5...
Bxc5 {[%clk 0:02:51.9]} 6. d4 {[%clk 0:02:56.9]} 6... Bb6 {[%clk 0:02:45.4]} 7.
c3 {[%clk 0:02:56.4]} 7... Bd7 {[%clk 0:02:44.3]} 8. Bd3 {[%clk 0:02:55.5]} 8...
Nge7 {[%clk 0:02:43.2]} 9. h4 {[%clk 0:02:54.5]} 9... h6 {[%clk 0:02:41.9]} 10.
h5 {[%clk 0:02:52.9]} 10... Na5 {[%clk 0:02:41.7]} 11. O-O {[%clk 0:02:41]}
11... Rc8 {[%clk 0:02:40.9]} 12. Nh4 {[%clk 0:02:27.1]} 12... a6 {[%clk
0:02:37.7]} 13. Qg4 {[%clk 0:02:23.8]} 13... Kf8 {[%clk 0:02:24.8]} 14. Re1
{[%clk 0:01:46.4]} 14... Bb5 {[%clk 0:02:22.9]} 15. Bc2 {[%clk 0:01:46]} 15...
Qd7 {[%clk 0:02:17]} 16. a4 {[%clk 0:01:43.4]} 16... Bc4 {[%clk 0:02:13.5]} 17.
Re3 {[%clk 0:01:41.3]} 17... Nb3 {[%clk 0:02:08.8]} 18. Rg3 {[%clk 0:01:21.1]}
18... Rg8 {[%clk 0:01:54.7]} 19. Bh7 {[%clk 0:01:09.4]} 19... Nxc1 {[%clk
0:01:54.2]} 20. Bxg8 {[%clk 0:00:30.2]} 20... Ne2+ {[%clk 0:01:51]} 21. Kh2
{[%clk 0:00:30.8]} 21... Nxg3 {[%clk 0:01:51.1]} 22. Bxf7 {[%clk 0:00:26.6]}
22... Nf1+ {[%clk 0:01:47.9]} 23. Kg1 {[%clk 0:00:26.4]} 23... Kxf7 {[%clk
0:01:48.5]} 24. Na3 {[%clk 0:00:19.4]} 24... Nd2 {[%clk 0:01:48.6]} 25. Re1
{[%clk 0:00:15.9]} 25... Ne4 {[%clk 0:01:44.7]} 26. Re3 {[%clk 0:00:15]} 26...
Ng5 {[%clk 0:01:34.1]} 27. Nxc4 {[%clk 0:00:14.4]} 27... Rxc4 {[%clk 0:01:33.5]}
28. f4 {[%clk 0:00:14.4]} 28... Ne4 {[%clk 0:01:32.6]} 29. Rf3 {[%clk
0:00:13.6]} 29... Nf5 {[%clk 0:01:29.8]} 30. Nxf5 {[%clk 0:00:12.8]} 30... exf5
{[%clk 0:01:30]} 31. Qg6+ {[%clk 0:00:13.4]} 31... Kf8 {[%clk 0:01:29.5]} 32. g4
{[%clk 0:00:12.8]} 32... Rc6 {[%clk 0:01:20.4]} 0-1

[Event "Early-Titled-Tuesday-Blitz-February-06-2024"]
[Site "Chess.com"]
[Date "2024.02.06"]
[Round "6"]
[White "amanjazu"]
[Black "SnekkerAndersen"]
[Result "1-0"]
[WhiteElo "2468"]
[BlackElo "2633"]
[TimeControl "180+1"]
[EndTime "9:06:14 PST"]
[Termination "amanjazu won by checkmate"]

1. g3 {[%clk 0:03:00.9]} 1... d5 {[%clk 0:02:56.5]} 2. Bg2 {[%clk 0:03:01.8]}
2... Nf6 {[%clk 0:02:56.2]} 3. f4 {[%clk 0:03:02.4]} 3... c5 {[%clk 0:02:55.3]}
4. Nf3 {[%clk 0:03:03]} 4... Nc6 {[%clk 0:02:55.9]} 5. O-O {[%clk 0:03:03.9]}
5... g6 {[%clk 0:02:54.9]} 6. d3 {[%clk 0:03:04.8]} 6... Bg7 {[%clk 0:02:54.6]}
7. Nc3 {[%clk 0:03:05.3]} 7... O-O {[%clk 0:02:54.7]} 8. e4 {[%clk 0:03:05.4]}
8... d4 {[%clk 0:02:55.4]} 9. Ne2 {[%clk 0:03:04.7]} 9... b5 {[%clk 0:02:56.1]}
10. h3 {[%clk 0:03:05.1]} 10... Rb8 {[%clk 0:02:54.7]} 11. g4 {[%clk 0:03:05.6]}
11... c4 {[%clk 0:02:54]} 12. e5 {[%clk 0:03:01.3]} 12... Ne8 {[%clk 0:02:51.5]}
13. dxc4 {[%clk 0:02:59]} 13... bxc4 {[%clk 0:02:40.6]} 14. Nfxd4 {[%clk
0:02:58.8]} 14... Nxd4 {[%clk 0:02:36.8]} 15. Qxd4 {[%clk 0:02:59.7]} 15... Qc7
{[%clk 0:02:36.2]} 16. Be3 {[%clk 0:02:57]} 16... Be6 {[%clk 0:02:34.8]} 17.
Rab1 {[%clk 0:02:51.3]} 17... a6 {[%clk 0:02:17]} 18. Nc3 {[%clk 0:02:47.8]}
18... f6 {[%clk 0:02:14.2]} 19. Bd5 {[%clk 0:02:39.1]} 19... Bxd5 {[%clk
0:02:11.2]} 20. Nxd5 {[%clk 0:02:34.5]} 20... Qa5 {[%clk 0:02:10.9]} 21. Nxe7+
{[%clk 0:02:33.7]} 21... Kh8 {[%clk 0:02:10.6]} 22. Nc6 {[%clk 0:02:33.2]} 22...
Qc7 {[%clk 0:02:07.9]} 23. Nxb8 {[%clk 0:02:31.4]} 23... Qxb8 {[%clk 0:02:08.8]}
24. Qxc4 {[%clk 0:02:24.8]} 24... fxe5 {[%clk 0:02:08.2]} 25. fxe5 {[%clk
0:02:25.7]} 25... Rxf1+ {[%clk 0:01:46.1]} 26. Rxf1 {[%clk 0:02:26.6]} 26...
Qxe5 {[%clk 0:01:46.1]} 27. Bf4 {[%clk 0:02:02.2]} 27... Qxb2 {[%clk 0:01:40]}
28. Re1 {[%clk 0:01:59.1]} 28... Qb6+ {[%clk 0:01:34.9]} 29. Kg2 {[%clk
0:01:55.9]} 29... Qd8 {[%clk 0:01:04.9]} 30. Qf7 {[%clk 0:01:30.5]} 30... Nf6
{[%clk 0:01:03.2]} 31. g5 {[%clk 0:01:25.2]} 31... Qa8+ {[%clk 0:00:56]} 32. Kh2
{[%clk 0:01:17.9]} 32... Qa7 {[%clk 0:00:22.3]} 33. Re8+ {[%clk 0:01:11.2]}
33... Nxe8 {[%clk 0:00:22.5]} 34. Qxe8+ {[%clk 0:01:12.1]} 34... Bf8 {[%clk
0:00:23.3]} 35. Qxf8# {[%clk 0:01:12.4]} 1-0

[Event "Early-Titled-Tuesday-Blitz-February-06-2024"]
[Site "Chess.com"]
[Date "2024.02.06"]
[Round "6"]
[White "bilosuvenosu06"]
[Black "Barath1308"]
[Result "1-0"]
[WhiteElo "2591"]
[BlackElo "2398"]
[TimeControl "180+1"]
[EndTime "9:06:14 PST"]
[Termination "bilosuvenosu06 won by resignation"]

1. d4 {[%clk 0:02:59.8]} 1... Nf6 {[%clk 0:02:58.8]} 2. c4 {[%clk 0:02:59.8]}
2... e6 {[%clk 0:02:59.1]} 3. Nc3 {[%clk 0:02:59.7]} 3... Bb4 {[%clk 0:02:59.6]}
4. e3 {[%clk 0:02:59.4]} 4... O-O {[%clk 0:02:59.4]} 5. Bd3 {[%clk 0:02:59.2]}
5... d5 {[%clk 0:03:00]} 6. Ne2 {[%clk 0:02:58.5]} 6... b6 {[%clk 0:02:59.8]} 7.
cxd5 {[%clk 0:02:58.2]} 7... exd5 {[%clk 0:02:59.1]} 8. O-O {[%clk 0:02:58]}
8... Bb7 {[%clk 0:02:59.3]} 9. Bd2 {[%clk 0:02:56.3]} 9... Nbd7 {[%clk
0:02:58.9]} 10. Rc1 {[%clk 0:02:56.1]} 10... a6 {[%clk 0:02:52.9]} 11. a3 {[%clk
0:02:55.9]} 11... Bd6 {[%clk 0:02:52]} 12. Nf4 {[%clk 0:02:49.2]} 12... c5
{[%clk 0:02:47.5]} 13. Qf3 {[%clk 0:02:42.9]} 13... cxd4 {[%clk 0:02:16.4]} 14.
exd4 {[%clk 0:02:42]} 14... Rc8 {[%clk 0:02:17.1]} 15. Qh3 {[%clk 0:02:34]}
15... g6 {[%clk 0:02:15.6]} 16. Nfe2 {[%clk 0:02:23.3]} 16... Ne4 {[%clk
0:02:12.2]} 17. Be3 {[%clk 0:02:00.8]} 17... Re8 {[%clk 0:02:00.5]} 18. Nxe4
{[%clk 0:01:53.1]} 18... dxe4 {[%clk 0:01:59.1]} 19. Bb1 {[%clk 0:01:45.9]}
19... b5 {[%clk 0:01:58.6]} 20. Nc3 {[%clk 0:01:45.3]} 20... Nb6 {[%clk
0:01:58.3]} 21. Ba2 {[%clk 0:01:20.2]} 21... Nc4 {[%clk 0:01:57.5]} 22. Bxc4
{[%clk 0:01:20.5]} 22... Rxc4 {[%clk 0:01:57.1]} 23. Ne2 {[%clk 0:01:18.5]}
23... Qc7 {[%clk 0:01:39.2]} 24. Qh4 {[%clk 0:01:08.1]} 24... Rc8 {[%clk
0:01:28.3]} 25. Rxc4 {[%clk 0:00:55.2]} 25... Qxc4 {[%clk 0:01:27.8]} 26. Ng3
{[%clk 0:00:54.9]} 26... Qd3 {[%clk 0:01:15.4]} 27. Qf6 {[%clk 0:00:52.3]} 27...
Bf8 {[%clk 0:01:13.4]} 28. Bf4 {[%clk 0:00:39.5]} 28... Bd5 {[%clk 0:00:58.1]}
29. Be5 {[%clk 0:00:37.9]} 1-0

[Event "Early-Titled-Tuesday-Blitz-February-06-2024"]
[Site "Chess.com"]
[Date "2024.02.06"]
[Round "6"]
[White "JiiHart"]
[Black "CFalcons8"]
[Result "1/2-1/2"]
[WhiteElo "2154"]
[BlackElo "2313"]
[TimeControl "180+1"]
[EndTime "9:06:16 PST"]
[Termination "Game drawn by repetition"]

1. e4 {[%clk 0:03:00.9]} 1... c5 {[%clk 0:02:56.1]} 2. c3 {[%clk 0:03:00.4]}
2... d5 {[%clk 0:02:55.9]} 3. exd5 {[%clk 0:03:00.3]} 3... Qxd5 {[%clk
0:02:56.8]} 4. d4 {[%clk 0:03:00.1]} 4... cxd4 {[%clk 0:02:56.9]} 5. cxd4 {[%clk
0:02:58.9]} 5... Nc6 {[%clk 0:02:57.6]} 6. Nf3 {[%clk 0:02:58.4]} 6... e6 {[%clk
0:02:56.7]} 7. Nc3 {[%clk 0:02:53.5]} 7... Bb4 {[%clk 0:02:56.4]} 8. Bd3 {[%clk
0:02:45.3]} 8... Nf6 {[%clk 0:02:50.9]} 9. O-O {[%clk 0:02:43.6]} 9... Qd8
{[%clk 0:02:46.3]} 10. Bg5 {[%clk 0:02:26]} 10... O-O {[%clk 0:02:45.1]} 11. Bc2
{[%clk 0:02:18.7]} 11... h6 {[%clk 0:02:43.3]} 12. Bh4 {[%clk 0:02:13.5]} 12...
Be7 {[%clk 0:02:39.5]} 13. a3 {[%clk 0:02:07.9]} 13... Nd5 {[%clk 0:02:36.8]}
14. Qd3 {[%clk 0:02:01.4]} 14... g6 {[%clk 0:02:34.8]} 15. Nxd5 {[%clk
0:01:48.2]} 15... exd5 {[%clk 0:02:32.5]} 16. Bxe7 {[%clk 0:01:27]} 16... Qxe7
{[%clk 0:02:33.4]} 17. Rfe1 {[%clk 0:01:27.1]} 17... Qf6 {[%clk 0:02:28.4]} 18.
Qd2 {[%clk 0:01:18.4]} 18... Bg4 {[%clk 0:02:24.9]} 19. Ne5 {[%clk 0:01:14.3]}
19... Nxe5 {[%clk 0:02:24.6]} 20. dxe5 {[%clk 0:01:14]} 20... Qc6 {[%clk
0:02:22.2]} 21. h3 {[%clk 0:00:56.9]} 21... Be6 {[%clk 0:02:21.4]} 22. Rac1
{[%clk 0:00:53]} 22... Qb6 {[%clk 0:02:18.5]} 23. Qxh6 {[%clk 0:00:51.3]} 23...
Qxb2 {[%clk 0:02:18.4]} 24. Bxg6 {[%clk 0:00:45.6]} 24... Rfc8 {[%clk
0:02:07.8]} 25. Qh7+ {[%clk 0:00:37.8]} 25... Kf8 {[%clk 0:02:07.1]} 26. Qh8+
{[%clk 0:00:32.8]} 26... Ke7 {[%clk 0:02:07.3]} 27. Qf6+ {[%clk 0:00:32.7]}
27... Kd7 {[%clk 0:02:07.4]} 28. Rxc8 {[%clk 0:00:28.6]} 28... Rxc8 {[%clk
0:02:08.2]} 29. Bxf7 {[%clk 0:00:28.9]} 29... Qb6 {[%clk 0:02:06.3]} 30. Bxe6+
{[%clk 0:00:19.5]} 30... Qxe6 {[%clk 0:02:07.2]} 31. Qxe6+ {[%clk 0:00:20.1]}
31... Kxe6 {[%clk 0:02:07.8]} 32. f4 {[%clk 0:00:20.6]} 32... Kf5 {[%clk
0:02:05.1]} 33. e6 {[%clk 0:00:19.8]} 33... Kxf4 {[%clk 0:02:04.5]} 34. e7
{[%clk 0:00:20.3]} 34... Re8 {[%clk 0:02:04.8]} 35. Kf2 {[%clk 0:00:20.1]} 35...
b5 {[%clk 0:02:00.5]} 36. Re6 {[%clk 0:00:19.5]} 36... Kf5 {[%clk 0:01:57.9]}
37. Re1 {[%clk 0:00:18.9]} 37... a5 {[%clk 0:01:57.6]} 38. g4+ {[%clk
0:00:18.5]} 38... Kf6 {[%clk 0:01:57.5]} 39. h4 {[%clk 0:00:16.7]} 39... Rxe7
{[%clk 0:01:56.5]} 40. Rxe7 {[%clk 0:00:16.7]} 40... Kxe7 {[%clk 0:01:57.4]} 41.
Ke3 {[%clk 0:00:17.3]} 41... b4 {[%clk 0:01:57.2]} 42. axb4 {[%clk 0:00:17.1]}
42... axb4 {[%clk 0:01:58.1]} 43. Kd4 {[%clk 0:00:17]} 43... Kf6 {[%clk
0:01:58]} 44. h5 {[%clk 0:00:17.4]} 44... Kg5 {[%clk 0:01:58.2]} 45. Kd3 {[%clk
0:00:13.9]} 45... Kh6 {[%clk 0:01:58.3]} 46. Kd4 {[%clk 0:00:14.1]} 46... Kg5
{[%clk 0:01:57.2]} 47. Kd3 {[%clk 0:00:14.3]} 47... Kh6 {[%clk 0:01:57.4]} 48.
Kd4 {[%clk 0:00:14.7]} 48... Kg5 {[%clk 0:01:57.4]} 1/2-1/2

[Event "Early-Titled-Tuesday-Blitz-February-06-2024"]
[Site "Chess.com"]
[Date "2024.02.06"]
[Round "6"]
[White "Gravity_Chess"]
[Black "ukchessbomber"]
[Result "1-0"]
[WhiteElo "2859"]
[BlackElo "2654"]
[TimeControl "180+1"]
[EndTime "9:06:19 PST"]
[Termination "Gravity_Chess won by resignation"]

1. c4 {[%clk 0:03:00.9]} 1... b6 {[%clk 0:03:00.9]} 2. Nf3 {[%clk 0:03:00.8]}
2... Bb7 {[%clk 0:03:01.8]} 3. g3 {[%clk 0:03:01.6]} 3... g6 {[%clk 0:03:01.6]}
4. Bg2 {[%clk 0:03:02]} 4... Bg7 {[%clk 0:03:02.5]} 5. Nc3 {[%clk 0:03:02.6]}
5... Nf6 {[%clk 0:03:02.9]} 6. O-O {[%clk 0:03:03.3]} 6... c5 {[%clk 0:03:02.9]}
7. d3 {[%clk 0:03:01.9]} 7... O-O {[%clk 0:03:03.1]} 8. Bg5 {[%clk 0:03:02.3]}
8... d6 {[%clk 0:03:01.1]} 9. Qd2 {[%clk 0:03:02.2]} 9... Nbd7 {[%clk
0:03:01.7]} 10. Bh6 {[%clk 0:03:02.8]} 10... a6 {[%clk 0:03:01.8]} 11. Rab1
{[%clk 0:03:02.4]} 11... Qc7 {[%clk 0:02:59.7]} 12. b4 {[%clk 0:03:02.9]} 12...
e6 {[%clk 0:02:55.5]} 13. Bxg7 {[%clk 0:02:55.7]} 13... Kxg7 {[%clk 0:02:55.6]}
14. Qb2 {[%clk 0:02:56.3]} 14... cxb4 {[%clk 0:02:53.4]} 15. Qxb4 {[%clk
0:02:54.8]} 15... Bc6 {[%clk 0:02:53.8]} 16. Rfc1 {[%clk 0:02:44.7]} 16... Rab8
{[%clk 0:02:52.8]} 17. Nb5 {[%clk 0:02:43.5]} 17... Bxb5 {[%clk 0:02:33.4]} 18.
cxb5 {[%clk 0:02:44.4]} 18... Qa7 {[%clk 0:02:33.8]} 19. Nd4 {[%clk 0:02:38.2]}
19... Rbc8 {[%clk 0:01:58.8]} 20. Nc6 {[%clk 0:02:16.1]} 20... Qc7 {[%clk
0:01:58.9]} 21. bxa6 {[%clk 0:02:16.8]} 21... Nc5 {[%clk 0:01:59.2]} 22. a7
{[%clk 0:02:14.2]} 22... Nd5 {[%clk 0:01:48.9]} 23. Bxd5 {[%clk 0:01:53.7]}
23... exd5 {[%clk 0:01:49.8]} 24. Qd4+ {[%clk 0:01:53.9]} 24... f6 {[%clk
0:01:42.6]} 25. Nb4 {[%clk 0:01:53.9]} 25... Qxa7 {[%clk 0:01:40]} 26. Nxd5
{[%clk 0:01:54.4]} 26... Qxa2 {[%clk 0:01:33.9]} 27. Rxb6 {[%clk 0:01:54.2]}
27... Qxe2 {[%clk 0:01:06.5]} 28. Nf4 {[%clk 0:01:53.3]} 28... Qe5 {[%clk
0:00:47.9]} 29. Qxd6 {[%clk 0:01:45.4]} 29... Qxd6 {[%clk 0:00:42.3]} 30. Rxd6
{[%clk 0:01:46.3]} 30... Nb3 {[%clk 0:00:42.4]} 31. Rb1 {[%clk 0:01:34]} 31...
Rc3 {[%clk 0:00:35.8]} 32. Ne6+ {[%clk 0:01:33.1]} 32... Kf7 {[%clk 0:00:30.5]}
33. Nxf8 {[%clk 0:01:33.6]} 33... Kxf8 {[%clk 0:00:30.5]} 34. Rxf6+ {[%clk
0:01:25.8]} 34... Kg7 {[%clk 0:00:30.9]} 35. Rd6 {[%clk 0:01:20.3]} 35... Nd2
{[%clk 0:00:29.7]} 36. Rb7+ {[%clk 0:01:20.5]} 36... Kh6 {[%clk 0:00:30.2]} 37.
Kg2 {[%clk 0:01:21.1]} 37... Nb3 {[%clk 0:00:25.6]} 38. Rdd7 {[%clk 0:01:16.7]}
38... Nc5 {[%clk 0:00:25]} 39. Rxh7+ {[%clk 0:01:16.9]} 39... Kg5 {[%clk
0:00:25.9]} 40. Rbf7 {[%clk 0:01:17.2]} 1-0

[Event "Early-Titled-Tuesday-Blitz-February-06-2024"]
[Site "Chess.com"]
[Date "2024.02.06"]
[Round "6"]
[White "ReinisUz"]
[Black "Muslim_player_05"]
[Result "1-0"]
[WhiteElo "2352"]
[BlackElo "2486"]
[TimeControl "180+1"]
[EndTime "9:06:20 PST"]
[Termination "ReinisUz won by checkmate"]

1. c4 {[%clk 0:03:00.9]} 1... Nf6 {[%clk 0:02:51.1]} 2. Nc3 {[%clk 0:03:00.8]}
2... g6 {[%clk 0:02:50.9]} 3. g3 {[%clk 0:03:00.3]} 3... Bg7 {[%clk 0:02:50.5]}
4. Bg2 {[%clk 0:03:00.8]} 4... O-O {[%clk 0:02:50.9]} 5. e4 {[%clk 0:03:01.3]}
5... d6 {[%clk 0:02:50.9]} 6. Nge2 {[%clk 0:03:01.6]} 6... c5 {[%clk 0:02:49.2]}
7. O-O {[%clk 0:03:02.1]} 7... Nc6 {[%clk 0:02:49.8]} 8. Rb1 {[%clk 0:03:02.5]}
8... Ne8 {[%clk 0:02:49.4]} 9. a3 {[%clk 0:03:02.6]} 9... Nc7 {[%clk 0:02:45.2]}
10. b4 {[%clk 0:03:02.3]} 10... Ne6 {[%clk 0:02:44.2]} 11. d3 {[%clk 0:03:00.1]}
11... Ncd4 {[%clk 0:02:29]} 12. f4 {[%clk 0:02:55.7]} 12... Nxe2+ {[%clk
0:02:22.5]} 13. Nxe2 {[%clk 0:02:55.6]} 13... Nd4 {[%clk 0:02:21.9]} 14. Bb2
{[%clk 0:02:55.3]} 14... Bg4 {[%clk 0:02:18.3]} 15. Bxd4 {[%clk 0:02:52]} 15...
Bxd4+ {[%clk 0:02:17.7]} 16. Kh1 {[%clk 0:02:51.9]} 16... Bxe2 {[%clk
0:01:54.5]} 17. Qxe2 {[%clk 0:02:51.6]} 17... cxb4 {[%clk 0:01:54.9]} 18. axb4
{[%clk 0:02:51.1]} 18... a5 {[%clk 0:01:55.1]} 19. bxa5 {[%clk 0:02:47.3]} 19...
Ra7 {[%clk 0:01:30.1]} 20. Rb5 {[%clk 0:02:43.5]} 20... Qc7 {[%clk 0:01:00]} 21.
Rfb1 {[%clk 0:02:41.2]} 21... e5 {[%clk 0:00:59.6]} 22. f5 {[%clk 0:02:38.6]}
22... Rb8 {[%clk 0:00:46.6]} 23. Qd2 {[%clk 0:02:34.1]} 23... Rba8 {[%clk
0:00:22.9]} 24. h4 {[%clk 0:02:03.5]} 24... Rxa5 {[%clk 0:00:17.3]} 25. Rxb7
{[%clk 0:01:57.6]} 25... Qc8 {[%clk 0:00:11.6]} 26. Kh2 {[%clk 0:01:31.7]} 26...
Ra2 {[%clk 0:00:09.2]} 27. Qh6 {[%clk 0:01:30.3]} 27... gxf5 {[%clk 0:00:06.2]}
28. Qg5+ {[%clk 0:01:15.2]} 28... Kh8 {[%clk 0:00:02.7]} 29. Qf6+ {[%clk
0:01:15.4]} 29... Kg8 {[%clk 0:00:02.7]} 30. Qxf7+ {[%clk 0:01:16.3]} 30... Kh8
{[%clk 0:00:02.7]} 31. Qg7# {[%clk 0:01:17.2]} 1-0

[Event "Early-Titled-Tuesday-Blitz-February-06-2024"]
[Site "Chess.com"]
[Date "2024.02.06"]
[Round "6"]
[White "FGHSMN"]
[Black "GHANDEEVAM2003"]
[Result "0-1"]
[WhiteElo "2941"]
[BlackElo "3033"]
[TimeControl "180+1"]
[EndTime "9:06:23 PST"]
[Termination "GHANDEEVAM2003 won by resignation"]

1. c4 {[%clk 0:03:00.9]} 1... d6 {[%clk 0:02:59.8]} 2. Nc3 {[%clk 0:03:00.6]}
2... g6 {[%clk 0:03:00.5]} 3. g3 {[%clk 0:02:59.4]} 3... Bg7 {[%clk 0:03:01.1]}
4. Bg2 {[%clk 0:03:00.1]} 4... Nc6 {[%clk 0:03:01.5]} 5. Nf3 {[%clk 0:03:00.1]}
5... Bd7 {[%clk 0:03:00.5]} 6. d4 {[%clk 0:02:59.8]} 6... Qc8 {[%clk 0:02:59.3]}
7. O-O {[%clk 0:02:55.2]} 7... Bh3 {[%clk 0:02:58.8]} 8. e4 {[%clk 0:02:52.6]}
8... h5 {[%clk 0:02:57.5]} 9. Bg5 {[%clk 0:02:23.7]} 9... h4 {[%clk 0:02:53.9]}
10. Bxh4 {[%clk 0:02:17.7]} 10... f6 {[%clk 0:02:30.9]} 11. d5 {[%clk
0:02:12.9]} 11... Nd8 {[%clk 0:02:30.7]} 12. g4 {[%clk 0:01:33.4]} 12... Qxg4
{[%clk 0:02:25.5]} 13. Bg3 {[%clk 0:01:33]} 13... Bxg2 {[%clk 0:02:09]} 14. Kxg2
{[%clk 0:01:33.9]} 14... f5 {[%clk 0:02:09.5]} 15. Nd4 {[%clk 0:01:24.3]} 15...
Qh3+ {[%clk 0:02:02.7]} 16. Kg1 {[%clk 0:01:23.7]} 16... Nh6 {[%clk 0:01:48.9]}
17. Ncb5 {[%clk 0:01:15.5]} 17... Kd7 {[%clk 0:01:42.4]} 18. Ne6 {[%clk
0:01:09.2]} 18... Ng4 {[%clk 0:01:31.4]} 19. Qf3 {[%clk 0:00:50.5]} 19... Nxh2
{[%clk 0:01:26.1]} 20. Qg2 {[%clk 0:00:51.1]} 20... Nxf1 {[%clk 0:01:19.5]} 21.
Qxh3 {[%clk 0:00:45.3]} 21... Rxh3 {[%clk 0:01:20.4]} 22. Rxf1 {[%clk
0:00:45.2]} 22... Nxe6 {[%clk 0:01:18.8]} 23. dxe6+ {[%clk 0:00:46.1]} 23... Kc6
{[%clk 0:01:19.7]} 24. Kg2 {[%clk 0:00:43.5]} 24... Rah8 {[%clk 0:01:16.7]} 25.
exf5 {[%clk 0:00:20.8]} 25... a6 {[%clk 0:01:16.2]} 26. Nc3 {[%clk 0:00:17.1]}
26... Bxc3 {[%clk 0:01:16.2]} 27. bxc3 {[%clk 0:00:18]} 27... gxf5 {[%clk
0:01:16.9]} 28. Kf3 {[%clk 0:00:18.1]} 28... R8h4 {[%clk 0:01:12.6]} 29. Kg2
{[%clk 0:00:17.2]} 29... Rh6 {[%clk 0:01:13.2]} 30. Re1 {[%clk 0:00:15.5]} 30...
R3h5 {[%clk 0:01:09.8]} 31. Kf3 {[%clk 0:00:16.1]} 31... Rg6 {[%clk 0:01:09.8]}
32. Kf4 {[%clk 0:00:15.9]} 32... Rg4+ {[%clk 0:01:09.8]} 33. Kf3 {[%clk
0:00:15.8]} 33... Rxc4 {[%clk 0:01:10.7]} 0-1

[Event "Early-Titled-Tuesday-Blitz-February-06-2024"]
[Site "Chess.com"]
[Date "2024.02.06"]
[Round "6"]
[White "Susal_De_Silva"]
[Black "Juwen"]
[Result "0-1"]
[WhiteElo "2750"]
[BlackElo "2576"]
[TimeControl "180+1"]
[EndTime "9:06:24 PST"]
[Termination "Juwen won by resignation"]

1. e4 {[%clk 0:03:00.9]} 1... c5 {[%clk 0:02:58.9]} 2. Nf3 {[%clk 0:03:00.9]}
2... e6 {[%clk 0:02:59.3]} 3. d4 {[%clk 0:03:01.1]} 3... cxd4 {[%clk 0:03:00.2]}
4. Nxd4 {[%clk 0:03:01.8]} 4... Nf6 {[%clk 0:03:00.8]} 5. Nc3 {[%clk 0:03:02]}
5... Nc6 {[%clk 0:03:01]} 6. Be2 {[%clk 0:03:02.4]} 6... Bb4 {[%clk 0:02:57.7]}
7. O-O {[%clk 0:03:02.7]} 7... Bxc3 {[%clk 0:02:55.8]} 8. bxc3 {[%clk
0:03:03.6]} 8... Nxe4 {[%clk 0:02:56.2]} 9. Bd3 {[%clk 0:03:04.3]} 9... Nf6
{[%clk 0:02:50.7]} 10. Ba3 {[%clk 0:02:49]} 10... Nxd4 {[%clk 0:02:45.9]} 11.
cxd4 {[%clk 0:02:46.9]} 11... d6 {[%clk 0:02:46]} 12. d5 {[%clk 0:02:36.8]}
12... Nxd5 {[%clk 0:02:34.9]} 13. Qh5 {[%clk 0:02:12.8]} 13... Nf6 {[%clk
0:02:26.8]} 14. Qh4 {[%clk 0:02:09.1]} 14... O-O {[%clk 0:02:20.4]} 15. Rad1
{[%clk 0:02:06]} 15... d5 {[%clk 0:01:54.4]} 16. Bb2 {[%clk 0:01:26.4]} 16... h6
{[%clk 0:01:53.9]} 17. Rfe1 {[%clk 0:01:13.2]} 17... Bd7 {[%clk 0:01:32.7]} 18.
Re3 {[%clk 0:01:11.7]} 18... Ne4 {[%clk 0:01:13.4]} 19. Qf4 {[%clk 0:00:56.1]}
19... f5 {[%clk 0:01:06.6]} 20. c4 {[%clk 0:00:40.9]} 20... Rf7 {[%clk
0:01:03.7]} 21. cxd5 {[%clk 0:00:38.3]} 21... exd5 {[%clk 0:01:04.6]} 22. h4
{[%clk 0:00:37.4]} 22... Bc6 {[%clk 0:01:02.8]} 23. f3 {[%clk 0:00:34.1]} 23...
Qb6 {[%clk 0:00:58]} 24. Ba1 {[%clk 0:00:23.1]} 24... g5 {[%clk 0:00:49.8]} 25.
Qe5 {[%clk 0:00:20.9]} 25... Qxe3+ {[%clk 0:00:49.2]} 0-1

[Event "Early-Titled-Tuesday-Blitz-February-06-2024"]
[Site "Chess.com"]
[Date "2024.02.06"]
[Round "6"]
[White "deribas12345"]
[Black "vasblesk"]
[Result "0-1"]
[WhiteElo "2515"]
[BlackElo "2735"]
[TimeControl "180+1"]
[EndTime "9:06:27 PST"]
[Termination "vasblesk won by resignation"]

1. d4 {[%clk 0:03:00.9]} 1... d5 {[%clk 0:02:54.1]} 2. c4 {[%clk 0:03:00.9]}
2... c6 {[%clk 0:02:51]} 3. Nf3 {[%clk 0:03:00.3]} 3... Nf6 {[%clk 0:02:51]} 4.
Nc3 {[%clk 0:03:01]} 4... e6 {[%clk 0:02:34.2]} 5. g3 {[%clk 0:02:59.9]} 5...
dxc4 {[%clk 0:02:33.3]} 6. Bg2 {[%clk 0:02:59.9]} 6... Nbd7 {[%clk 0:02:32.4]}
7. a4 {[%clk 0:02:58.9]} 7... Be7 {[%clk 0:02:29.6]} 8. O-O {[%clk 0:02:58.3]}
8... O-O {[%clk 0:02:25.7]} 9. e4 {[%clk 0:02:58]} 9... Re8 {[%clk 0:02:25.9]}
10. Nd2 {[%clk 0:02:54.8]} 10... e5 {[%clk 0:02:18.5]} 11. Nxc4 {[%clk
0:02:48.5]} 11... exd4 {[%clk 0:02:17]} 12. Qxd4 {[%clk 0:02:49.4]} 12... Bc5
{[%clk 0:02:16.9]} 13. Qd3 {[%clk 0:02:40.8]} 13... Ng4 {[%clk 0:02:15.2]} 14.
Bf4 {[%clk 0:02:30.7]} 14... Qf6 {[%clk 0:02:08.3]} 15. Nd6 {[%clk 0:02:13.7]}
15... Nxf2 {[%clk 0:01:30.6]} 16. Rxf2 {[%clk 0:02:05.5]} 16... Ne5 {[%clk
0:01:26.3]} 17. Nxe8 {[%clk 0:01:36.4]} 17... Bxf2+ {[%clk 0:01:24.8]} 18. Kf1
{[%clk 0:01:17.3]} 18... Nxd3 {[%clk 0:01:11.1]} 19. Nxf6+ {[%clk 0:01:15.1]}
19... gxf6 {[%clk 0:01:12]} 20. Rd1 {[%clk 0:01:00.2]} 20... Nxf4 {[%clk
0:01:10.5]} 21. Rd8+ {[%clk 0:01:00.3]} 21... Kg7 {[%clk 0:01:10.5]} 22. gxf4
{[%clk 0:01:00.9]} 22... Bb6 {[%clk 0:01:09.8]} 23. Re8 {[%clk 0:01:00.1]} 23...
Bc7 {[%clk 0:01:08.5]} 24. f5 {[%clk 0:00:51]} 24... Bxh2 {[%clk 0:01:04.7]} 25.
a5 {[%clk 0:00:26.7]} 25... Rb8 {[%clk 0:01:02]} 26. Na4 {[%clk 0:00:19.6]}
26... b6 {[%clk 0:00:58.4]} 27. axb6 {[%clk 0:00:15.3]} 27... Ba6+ {[%clk
0:00:57.4]} 28. Kf2 {[%clk 0:00:10.5]} 28... Rxe8 {[%clk 0:00:58.3]} 29. bxa7
{[%clk 0:00:10.5]} 29... Ra8 {[%clk 0:00:56.5]} 0-1